{"text_format":"3","workbook":"xlsx","n_sheets":1,"sheets":["Αναφορά εξόδων"],"not_rendered":{"images":2,"defined_names":12},"read":"whole","date_system":"1900"}

{"sheet":"Αναφορά εξόδων","index":0,"n_rows":24,"n_cols":13,"rows_kept":24,"merged":[[3,2,3,3],[3,5,3,6],[3,9,3,10],[4,2,4,3],[4,5,4,6],[4,9,4,10],[5,2,5,3],[5,5,5,6],[5,9,5,10],[6,2,6,3],[6,5,6,6],[6,9,6,10],[7,9,7,10]]}
[null,"ΑΝΑΦΟΡΑ ΕΞΟΔΩΝ"]
[null,"CONTOSO, LTD"]
[null,"Κυψέλης 123, Αθήνα, Αττική 12345"]
[null,"ΤΗΛΕΦΩΝΟ",4255550121,null,"ΟΝΟΜΑ","Στέλλα Κωστίδου",null,null,"ΣΚΟΠΟΣ","Ετήσιο σεμινάριο πωλήσεων",null,"ΧΡΕΩΣΗ ΕΞΟΔΩΝ ΚΙΝΗΣΗΣ",{"v":0.5,"d":"0.50€/χλμ."}]
[null,"ΦΑΞ",4255550122,null,"ΤΜΗΜΑ","Πωλήσεις",null,null,"ΕΝΑΡΞΗ",{"$f":"IFERROR(MIN(Έξοδα[ΗΜΕΡΟΜΗΝΙΑ]),\"\")","v":"2018-06-04"},null,"ΧΡΕΩΣΗ ΓΕΥΜΑΤΩΝ",{"v":30,"d":"30.00€/ημέρα"}]
[null,"EMAIL","info@contoso.com",null,"ΘΕΣΗ","Γενικός διευθυντής",null,null,"ΛΗΞΗ",{"$f":"IFERROR(MAX(Έξοδα[ΗΜΕΡΟΜΗΝΙΑ]),\"\")","v":"2018-07-04"},null,"ΧΡΕΩΣΗ ΞΕΝΟΔΟΧΕΙΟΥ",{"v":200,"d":"200.00€/διανυκτέρευση"}]
[null,"WEB","www.contoso.com",null,"ΠΡΟΪΣΤΑΜΕΝΟΣ","Νέστορας Φωτίου",null,null,"ΥΠΟΒΛΗΘΗΚΕ ΑΠΟ","Στέλλα Κωστίδου",null,"ΧΡΕΩΣΗ ΤΗΛΕΦΩΝΟΥ",{"v":10,"d":"10.00€/ημέρα"}]
[{"$nulls":8},"ΕΓΚΡΙΘΗΚΕ ΑΠΟ","Νέστορας Φωτίου",null,"ΧΡΕΩΣΗ  ΔΙΑΦΟΡΩΝ",{"v":50,"d":"50.00€/ημέρα"}]
[]
[null,"ΗΜΕΡΟΜΗΝΙΑ","ΛΟΓΑΡΙΑΣΜΟΣ","ΠΕΡΙΓΡΑΦΗ","ΞΕΝΟΔΟΧΕΙΟ","ΜΕΤΑΦΟΡΑ","ΓΕΥΜΑΤΑ","ΤΗΛΕΦΩΝΟ","ΔΙΑΦΟΡΑ","ΑΡΧΙΚΗ ΕΝΔΕΙΞΗ  \nΟΔΟΜΕΤΡΟΥ","ΤΕΛΙΚΗ ΕΝΔΕΙΞΗ  \nΟΔΟΜΕΤΡΟΥ","ΕΞΟΔΑ ΚΙΝΗΣΗΣ \nΣΥΝΟΛΟ","ΣΥΝΟΛΟ "]
[null,{"$f":"TODAY()","v":"2018-06-04"},"Πωλήσεις","Έξοδα κίνησης",{"$nulls":4},{"v":50,"d":"50.00 €"},{"v":11378.5,"d":"11,378.5χλμ."},{"v":11456.2,"d":"11,456.2χλμ."},{"$f":"IF(COUNTA(Έξοδα[[#This Row],[ΑΡΧΙΚΗ ΕΝΔΕΙΞΗ  \nΟΔΟΜΕΤΡΟΥ]:[ΤΕΛΙΚΗ ΕΝΔΕΙΞΗ  \nΟΔΟΜΕΤΡΟΥ]])=2,(Έξοδα[[#This Row],[ΤΕΛΙΚΗ ΕΝΔΕΙΞΗ  \nΟΔΟΜΕΤΡΟΥ]]-Έξοδα[[#This Row],[ΑΡΧΙΚΗ ΕΝΔΕΙΞΗ  \nΟΔΟΜΕΤΡΟΥ]])*ΧρέωσηΕξόδωνΚίνησης,\"\")","v":{"v":38.850000000000364,"d":"38.85 €"}},{"$f":"IF(COUNTA(Έξοδα[[#This Row],[ΗΜΕΡΟΜΗΝΙΑ]:[ΤΕΛΙΚΗ ΕΝΔΕΙΞΗ  \nΟΔΟΜΕΤΡΟΥ]])=0,\"\",SUM(Έξοδα[[#This Row],[ΞΕΝΟΔΟΧΕΙΟ]:[ΜΕΤΑΦΟΡΑ]],Έξοδα[[#This Row],[ΓΕΥΜΑΤΑ]:[ΔΙΑΦΟΡΑ]],((Έξοδα[[#This Row],[ΤΕΛΙΚΗ ΕΝΔΕΙΞΗ  \nΟΔΟΜΕΤΡΟΥ]]-Έξοδα[[#This Row],[ΑΡΧΙΚΗ ΕΝΔΕΙΞΗ  \nΟΔΟΜΕΤΡΟΥ]])*(ΧρέωσηΕξόδωνΚίνησης))))","v":{"v":88.85000000000036,"d":"88.85 €"}}]
[null,{"$f":"TODAY()+30","v":"2018-07-04"},"Πωλήσεις","Συνέδριο",{"v":445,"d":"445.00 €"},{"v":225,"d":"225.00 €"},{"v":20,"d":"20.00 €"},null,{"v":5,"d":"5.00 €"},{"v":11500,"d":"11,500.0χλμ."},{"v":11560,"d":"11,560.0χλμ."},{"$f":"IF(COUNTA(Έξοδα[[#This Row],[ΑΡΧΙΚΗ ΕΝΔΕΙΞΗ  \nΟΔΟΜΕΤΡΟΥ]:[ΤΕΛΙΚΗ ΕΝΔΕΙΞΗ  \nΟΔΟΜΕΤΡΟΥ]])=2,(Έξοδα[[#This Row],[ΤΕΛΙΚΗ ΕΝΔΕΙΞΗ  \nΟΔΟΜΕΤΡΟΥ]]-Έξοδα[[#This Row],[ΑΡΧΙΚΗ ΕΝΔΕΙΞΗ  \nΟΔΟΜΕΤΡΟΥ]])*ΧρέωσηΕξόδωνΚίνησης,\"\")","v":{"v":30,"d":"30.00 €"}},{"$f":"IF(COUNTA(Έξοδα[[#This Row],[ΗΜΕΡΟΜΗΝΙΑ]:[ΤΕΛΙΚΗ ΕΝΔΕΙΞΗ  \nΟΔΟΜΕΤΡΟΥ]])=0,\"\",SUM(Έξοδα[[#This Row],[ΞΕΝΟΔΟΧΕΙΟ]:[ΜΕΤΑΦΟΡΑ]],Έξοδα[[#This Row],[ΓΕΥΜΑΤΑ]:[ΔΙΑΦΟΡΑ]],((Έξοδα[[#This Row],[ΤΕΛΙΚΗ ΕΝΔΕΙΞΗ  \nΟΔΟΜΕΤΡΟΥ]]-Έξοδα[[#This Row],[ΑΡΧΙΚΗ ΕΝΔΕΙΞΗ  \nΟΔΟΜΕΤΡΟΥ]])*(ΧρέωσηΕξόδωνΚίνησης))))","v":{"v":725,"d":"725.00 €"}}]
[{"$nulls":11},{"$f":"IF(COUNTA(Έξοδα[[#This Row],[ΑΡΧΙΚΗ ΕΝΔΕΙΞΗ  \nΟΔΟΜΕΤΡΟΥ]:[ΤΕΛΙΚΗ ΕΝΔΕΙΞΗ  \nΟΔΟΜΕΤΡΟΥ]])=2,(Έξοδα[[#This Row],[ΤΕΛΙΚΗ ΕΝΔΕΙΞΗ  \nΟΔΟΜΕΤΡΟΥ]]-Έξοδα[[#This Row],[ΑΡΧΙΚΗ ΕΝΔΕΙΞΗ  \nΟΔΟΜΕΤΡΟΥ]])*ΧρέωσηΕξόδωνΚίνησης,\"\")","v":""},{"$f":"IF(COUNTA(Έξοδα[[#This Row],[ΗΜΕΡΟΜΗΝΙΑ]:[ΤΕΛΙΚΗ ΕΝΔΕΙΞΗ  \nΟΔΟΜΕΤΡΟΥ]])=0,\"\",SUM(Έξοδα[[#This Row],[ΞΕΝΟΔΟΧΕΙΟ]:[ΜΕΤΑΦΟΡΑ]],Έξοδα[[#This Row],[ΓΕΥΜΑΤΑ]:[ΔΙΑΦΟΡΑ]],((Έξοδα[[#This Row],[ΤΕΛΙΚΗ ΕΝΔΕΙΞΗ  \nΟΔΟΜΕΤΡΟΥ]]-Έξοδα[[#This Row],[ΑΡΧΙΚΗ ΕΝΔΕΙΞΗ  \nΟΔΟΜΕΤΡΟΥ]])*(ΧρέωσηΕξόδωνΚίνησης))))","v":""}]
[{"$nulls":11},{"$f":"IF(COUNTA(Έξοδα[[#This Row],[ΑΡΧΙΚΗ ΕΝΔΕΙΞΗ  \nΟΔΟΜΕΤΡΟΥ]:[ΤΕΛΙΚΗ ΕΝΔΕΙΞΗ  \nΟΔΟΜΕΤΡΟΥ]])=2,(Έξοδα[[#This Row],[ΤΕΛΙΚΗ ΕΝΔΕΙΞΗ  \nΟΔΟΜΕΤΡΟΥ]]-Έξοδα[[#This Row],[ΑΡΧΙΚΗ ΕΝΔΕΙΞΗ  \nΟΔΟΜΕΤΡΟΥ]])*ΧρέωσηΕξόδωνΚίνησης,\"\")","v":""},{"$f":"IF(COUNTA(Έξοδα[[#This Row],[ΗΜΕΡΟΜΗΝΙΑ]:[ΤΕΛΙΚΗ ΕΝΔΕΙΞΗ  \nΟΔΟΜΕΤΡΟΥ]])=0,\"\",SUM(Έξοδα[[#This Row],[ΞΕΝΟΔΟΧΕΙΟ]:[ΜΕΤΑΦΟΡΑ]],Έξοδα[[#This Row],[ΓΕΥΜΑΤΑ]:[ΔΙΑΦΟΡΑ]],((Έξοδα[[#This Row],[ΤΕΛΙΚΗ ΕΝΔΕΙΞΗ  \nΟΔΟΜΕΤΡΟΥ]]-Έξοδα[[#This Row],[ΑΡΧΙΚΗ ΕΝΔΕΙΞΗ  \nΟΔΟΜΕΤΡΟΥ]])*(ΧρέωσηΕξόδωνΚίνησης))))","v":""}]
[{"$nulls":11},{"$f":"IF(COUNTA(Έξοδα[[#This Row],[ΑΡΧΙΚΗ ΕΝΔΕΙΞΗ  \nΟΔΟΜΕΤΡΟΥ]:[ΤΕΛΙΚΗ ΕΝΔΕΙΞΗ  \nΟΔΟΜΕΤΡΟΥ]])=2,(Έξοδα[[#This Row],[ΤΕΛΙΚΗ ΕΝΔΕΙΞΗ  \nΟΔΟΜΕΤΡΟΥ]]-Έξοδα[[#This Row],[ΑΡΧΙΚΗ ΕΝΔΕΙΞΗ  \nΟΔΟΜΕΤΡΟΥ]])*ΧρέωσηΕξόδωνΚίνησης,\"\")","v":""},{"$f":"IF(COUNTA(Έξοδα[[#This Row],[ΗΜΕΡΟΜΗΝΙΑ]:[ΤΕΛΙΚΗ ΕΝΔΕΙΞΗ  \nΟΔΟΜΕΤΡΟΥ]])=0,\"\",SUM(Έξοδα[[#This Row],[ΞΕΝΟΔΟΧΕΙΟ]:[ΜΕΤΑΦΟΡΑ]],Έξοδα[[#This Row],[ΓΕΥΜΑΤΑ]:[ΔΙΑΦΟΡΑ]],((Έξοδα[[#This Row],[ΤΕΛΙΚΗ ΕΝΔΕΙΞΗ  \nΟΔΟΜΕΤΡΟΥ]]-Έξοδα[[#This Row],[ΑΡΧΙΚΗ ΕΝΔΕΙΞΗ  \nΟΔΟΜΕΤΡΟΥ]])*(ΧρέωσηΕξόδωνΚίνησης))))","v":""}]
[{"$nulls":11},{"$f":"IF(COUNTA(Έξοδα[[#This Row],[ΑΡΧΙΚΗ ΕΝΔΕΙΞΗ  \nΟΔΟΜΕΤΡΟΥ]:[ΤΕΛΙΚΗ ΕΝΔΕΙΞΗ  \nΟΔΟΜΕΤΡΟΥ]])=2,(Έξοδα[[#This Row],[ΤΕΛΙΚΗ ΕΝΔΕΙΞΗ  \nΟΔΟΜΕΤΡΟΥ]]-Έξοδα[[#This Row],[ΑΡΧΙΚΗ ΕΝΔΕΙΞΗ  \nΟΔΟΜΕΤΡΟΥ]])*ΧρέωσηΕξόδωνΚίνησης,\"\")","v":""},{"$f":"IF(COUNTA(Έξοδα[[#This Row],[ΗΜΕΡΟΜΗΝΙΑ]:[ΤΕΛΙΚΗ ΕΝΔΕΙΞΗ  \nΟΔΟΜΕΤΡΟΥ]])=0,\"\",SUM(Έξοδα[[#This Row],[ΞΕΝΟΔΟΧΕΙΟ]:[ΜΕΤΑΦΟΡΑ]],Έξοδα[[#This Row],[ΓΕΥΜΑΤΑ]:[ΔΙΑΦΟΡΑ]],((Έξοδα[[#This Row],[ΤΕΛΙΚΗ ΕΝΔΕΙΞΗ  \nΟΔΟΜΕΤΡΟΥ]]-Έξοδα[[#This Row],[ΑΡΧΙΚΗ ΕΝΔΕΙΞΗ  \nΟΔΟΜΕΤΡΟΥ]])*(ΧρέωσηΕξόδωνΚίνησης))))","v":""}]
[{"$nulls":11},{"$f":"IF(COUNTA(Έξοδα[[#This Row],[ΑΡΧΙΚΗ ΕΝΔΕΙΞΗ  \nΟΔΟΜΕΤΡΟΥ]:[ΤΕΛΙΚΗ ΕΝΔΕΙΞΗ  \nΟΔΟΜΕΤΡΟΥ]])=2,(Έξοδα[[#This Row],[ΤΕΛΙΚΗ ΕΝΔΕΙΞΗ  \nΟΔΟΜΕΤΡΟΥ]]-Έξοδα[[#This Row],[ΑΡΧΙΚΗ ΕΝΔΕΙΞΗ  \nΟΔΟΜΕΤΡΟΥ]])*ΧρέωσηΕξόδωνΚίνησης,\"\")","v":""},{"$f":"IF(COUNTA(Έξοδα[[#This Row],[ΗΜΕΡΟΜΗΝΙΑ]:[ΤΕΛΙΚΗ ΕΝΔΕΙΞΗ  \nΟΔΟΜΕΤΡΟΥ]])=0,\"\",SUM(Έξοδα[[#This Row],[ΞΕΝΟΔΟΧΕΙΟ]:[ΜΕΤΑΦΟΡΑ]],Έξοδα[[#This Row],[ΓΕΥΜΑΤΑ]:[ΔΙΑΦΟΡΑ]],((Έξοδα[[#This Row],[ΤΕΛΙΚΗ ΕΝΔΕΙΞΗ  \nΟΔΟΜΕΤΡΟΥ]]-Έξοδα[[#This Row],[ΑΡΧΙΚΗ ΕΝΔΕΙΞΗ  \nΟΔΟΜΕΤΡΟΥ]])*(ΧρέωσηΕξόδωνΚίνησης))))","v":""}]
[{"$nulls":11},{"$f":"IF(COUNTA(Έξοδα[[#This Row],[ΑΡΧΙΚΗ ΕΝΔΕΙΞΗ  \nΟΔΟΜΕΤΡΟΥ]:[ΤΕΛΙΚΗ ΕΝΔΕΙΞΗ  \nΟΔΟΜΕΤΡΟΥ]])=2,(Έξοδα[[#This Row],[ΤΕΛΙΚΗ ΕΝΔΕΙΞΗ  \nΟΔΟΜΕΤΡΟΥ]]-Έξοδα[[#This Row],[ΑΡΧΙΚΗ ΕΝΔΕΙΞΗ  \nΟΔΟΜΕΤΡΟΥ]])*ΧρέωσηΕξόδωνΚίνησης,\"\")","v":""},{"$f":"IF(COUNTA(Έξοδα[[#This Row],[ΗΜΕΡΟΜΗΝΙΑ]:[ΤΕΛΙΚΗ ΕΝΔΕΙΞΗ  \nΟΔΟΜΕΤΡΟΥ]])=0,\"\",SUM(Έξοδα[[#This Row],[ΞΕΝΟΔΟΧΕΙΟ]:[ΜΕΤΑΦΟΡΑ]],Έξοδα[[#This Row],[ΓΕΥΜΑΤΑ]:[ΔΙΑΦΟΡΑ]],((Έξοδα[[#This Row],[ΤΕΛΙΚΗ ΕΝΔΕΙΞΗ  \nΟΔΟΜΕΤΡΟΥ]]-Έξοδα[[#This Row],[ΑΡΧΙΚΗ ΕΝΔΕΙΞΗ  \nΟΔΟΜΕΤΡΟΥ]])*(ΧρέωσηΕξόδωνΚίνησης))))","v":""}]
[{"$nulls":11},{"$f":"IF(COUNTA(Έξοδα[[#This Row],[ΑΡΧΙΚΗ ΕΝΔΕΙΞΗ  \nΟΔΟΜΕΤΡΟΥ]:[ΤΕΛΙΚΗ ΕΝΔΕΙΞΗ  \nΟΔΟΜΕΤΡΟΥ]])=2,(Έξοδα[[#This Row],[ΤΕΛΙΚΗ ΕΝΔΕΙΞΗ  \nΟΔΟΜΕΤΡΟΥ]]-Έξοδα[[#This Row],[ΑΡΧΙΚΗ ΕΝΔΕΙΞΗ  \nΟΔΟΜΕΤΡΟΥ]])*ΧρέωσηΕξόδωνΚίνησης,\"\")","v":""},{"$f":"IF(COUNTA(Έξοδα[[#This Row],[ΗΜΕΡΟΜΗΝΙΑ]:[ΤΕΛΙΚΗ ΕΝΔΕΙΞΗ  \nΟΔΟΜΕΤΡΟΥ]])=0,\"\",SUM(Έξοδα[[#This Row],[ΞΕΝΟΔΟΧΕΙΟ]:[ΜΕΤΑΦΟΡΑ]],Έξοδα[[#This Row],[ΓΕΥΜΑΤΑ]:[ΔΙΑΦΟΡΑ]],((Έξοδα[[#This Row],[ΤΕΛΙΚΗ ΕΝΔΕΙΞΗ  \nΟΔΟΜΕΤΡΟΥ]]-Έξοδα[[#This Row],[ΑΡΧΙΚΗ ΕΝΔΕΙΞΗ  \nΟΔΟΜΕΤΡΟΥ]])*(ΧρέωσηΕξόδωνΚίνησης))))","v":""}]
[{"$nulls":11},{"$f":"IF(COUNTA(Έξοδα[[#This Row],[ΑΡΧΙΚΗ ΕΝΔΕΙΞΗ  \nΟΔΟΜΕΤΡΟΥ]:[ΤΕΛΙΚΗ ΕΝΔΕΙΞΗ  \nΟΔΟΜΕΤΡΟΥ]])=2,(Έξοδα[[#This Row],[ΤΕΛΙΚΗ ΕΝΔΕΙΞΗ  \nΟΔΟΜΕΤΡΟΥ]]-Έξοδα[[#This Row],[ΑΡΧΙΚΗ ΕΝΔΕΙΞΗ  \nΟΔΟΜΕΤΡΟΥ]])*ΧρέωσηΕξόδωνΚίνησης,\"\")","v":""},{"$f":"IF(COUNTA(Έξοδα[[#This Row],[ΗΜΕΡΟΜΗΝΙΑ]:[ΤΕΛΙΚΗ ΕΝΔΕΙΞΗ  \nΟΔΟΜΕΤΡΟΥ]])=0,\"\",SUM(Έξοδα[[#This Row],[ΞΕΝΟΔΟΧΕΙΟ]:[ΜΕΤΑΦΟΡΑ]],Έξοδα[[#This Row],[ΓΕΥΜΑΤΑ]:[ΔΙΑΦΟΡΑ]],((Έξοδα[[#This Row],[ΤΕΛΙΚΗ ΕΝΔΕΙΞΗ  \nΟΔΟΜΕΤΡΟΥ]]-Έξοδα[[#This Row],[ΑΡΧΙΚΗ ΕΝΔΕΙΞΗ  \nΟΔΟΜΕΤΡΟΥ]])*(ΧρέωσηΕξόδωνΚίνησης))))","v":""}]
[{"$nulls":11},{"$f":"IF(COUNTA(Έξοδα[[#This Row],[ΑΡΧΙΚΗ ΕΝΔΕΙΞΗ  \nΟΔΟΜΕΤΡΟΥ]:[ΤΕΛΙΚΗ ΕΝΔΕΙΞΗ  \nΟΔΟΜΕΤΡΟΥ]])=2,(Έξοδα[[#This Row],[ΤΕΛΙΚΗ ΕΝΔΕΙΞΗ  \nΟΔΟΜΕΤΡΟΥ]]-Έξοδα[[#This Row],[ΑΡΧΙΚΗ ΕΝΔΕΙΞΗ  \nΟΔΟΜΕΤΡΟΥ]])*ΧρέωσηΕξόδωνΚίνησης,\"\")","v":""},{"$f":"IF(COUNTA(Έξοδα[[#This Row],[ΗΜΕΡΟΜΗΝΙΑ]:[ΤΕΛΙΚΗ ΕΝΔΕΙΞΗ  \nΟΔΟΜΕΤΡΟΥ]])=0,\"\",SUM(Έξοδα[[#This Row],[ΞΕΝΟΔΟΧΕΙΟ]:[ΜΕΤΑΦΟΡΑ]],Έξοδα[[#This Row],[ΓΕΥΜΑΤΑ]:[ΔΙΑΦΟΡΑ]],((Έξοδα[[#This Row],[ΤΕΛΙΚΗ ΕΝΔΕΙΞΗ  \nΟΔΟΜΕΤΡΟΥ]]-Έξοδα[[#This Row],[ΑΡΧΙΚΗ ΕΝΔΕΙΞΗ  \nΟΔΟΜΕΤΡΟΥ]])*(ΧρέωσηΕξόδωνΚίνησης))))","v":""}]
[null,"ΣΥΝΟΛΑ",null,null,{"$f":"SUBTOTAL(109,Έξοδα[ΞΕΝΟΔΟΧΕΙΟ])","v":{"v":445,"d":"445.00 €"}},{"$f":"SUBTOTAL(109,Έξοδα[ΜΕΤΑΦΟΡΑ])","v":{"v":225,"d":"225.00 €"}},{"$f":"SUBTOTAL(109,Έξοδα[ΓΕΥΜΑΤΑ])","v":{"v":20,"d":"20.00 €"}},{"$f":"SUBTOTAL(109,Έξοδα[ΤΗΛΕΦΩΝΟ])","v":0},{"$f":"SUBTOTAL(109,Έξοδα[ΔΙΑΦΟΡΑ])","v":{"v":55,"d":"55.00 €"}},{"$nulls":3},{"$f":"SUBTOTAL(109,Έξοδα[[ΣΥΝΟΛΟ ]])","v":{"v":813.8500000000004,"d":"813.85 €"}}]
[{"$nulls":11},"ΠΡΟΚΑΤΑΒΟΛΕΣ",{"v":0,"d":"0.00 €"}]
[{"$nulls":11},"ΣΥΝΟΛΟ",{"$f":"Έξοδα[[#Totals],[ΣΥΝΟΛΟ ]]-Προκαταβολές","v":{"v":813.8500000000004,"d":"813.85 €"}}]